bitfinex/quotes_BTCUSD_20251012
["timestamp","ask_amount","ask_price","bid_price","bid_amount"]
[1760234978236,5.25332876,110440.0,110430.0,0.00287526]
[1760234978439,5.27282481,110440.0,110430.0,0.00287526]
[1760234979207,5.69744475,110440.0,110430.0,1e-08]
[1760234980408,5.71776442,110440.0,110430.0,1e-08]
[1760234980783,5.28119701,110440.0,110430.0,1e-08]
[1760234982989,5.68119701,110440.0,110430.0,1e-08]
[1760234983217,5.706197,110440.0,110430.0,1e-08]
[1760234983357,5.72651667,110440.0,110430.0,1e-08]
[1760234984221,5.32651667,110440.0,110430.0,1e-08]
[1760234984430,5.35084824,110440.0,110430.0,1e-08]
[1760234984646,5.28119701,110440.0,110430.0,1e-08]
[1760234985470,5.30552858,110440.0,110430.0,1e-08]
[1760234985992,5.27756185,110440.0,110430.0,1e-08]
[1760234986778,5.30189342,110440.0,110430.0,1e-08]
[1760234987668,5.28605083,110440.0,110430.0,1e-08]
[1760234988547,5.27756185,110440.0,110430.0,1e-08]
[1760234988756,5.30189342,110440.0,110430.0,1e-08]
[1760234989624,5.26936244,110440.0,110430.0,1e-08]
[1760234989765,0.85411581,110440.0,110430.0,0.02505001]
[1760234990138,0.85411581,110440.0,110430.0,0.05095867]
[1760234990139,0.99881844,110440.0,110430.0,0.05095867]
[1760234990341,0.80127619,110440.0,110430.0,0.10386867]
[1760234990550,0.01791119,110440.0,110430.0,0.33324179]
[1760234990777,0.01791119,110440.0,110430.0,0.31513077]
[1760234991346,0.001,110440.0,110430.0,0.31513077]
[1760234991501,0.1820938,110440.0,110430.0,0.31513077]
[1760234991700,0.53900499,110440.0,110430.0,0.31513077]
[1760234992297,0.5210938,110440.0,110430.0,0.31513077]
[1760234992657,0.5220938,110440.0,110430.0,0.31513077]
[1760234993102,0.5210938,110440.0,110430.0,0.31513077]
[1760234993741,1.129105,110440.0,110430.0,1e-08]
[1760234993947,1.15712799,110440.0,110430.0,1e-08]
[1760234994153,1.140165,110440.0,110430.0,1e-08]
[1760234994371,1.15712843,110440.0,110430.0,1e-08]
[1760234996736,1.14606843,110440.0,110430.0,1e-08]
[1760234999237,1.14606843,110440.0,110430.0,0.02505001]
[1760234999364,1.15642843,110440.0,110430.0,1e-08]
[1760235000823,5.22317743,110440.0,110430.0,1e-08]
[1760235002610,5.68765613,110440.0,110430.0,1e-08]
[1760235002873,5.7156229,110440.0,110430.0,1e-08]
[1760235003075,5.3156229,110440.0,110430.0,1e-08]
[1760235003278,5.29574,110440.0,110430.0,1e-08]
[1760235003900,5.30522058,110440.0,110430.0,1e-08]
[1760235004876,5.30622058,110440.0,110430.0,1e-08]
[1760235005498,5.28188901,110440.0,110430.0,1e-08]
[1760235006264,4.58789201,110410.0,110400.0,0.0004]
[1760235006492,5.18856321,110410.0,110400.0,0.00055068]
[1760235006708,5.21549321,110410.0,110400.0,0.00055068]
[1760235006912,5.26922951,110410.0,110400.0,0.00055068]
[1760235007114,5.30508677,110410.0,110400.0,0.00055068]
[1760235007327,5.25227188,110410.0,110400.0,0.00055068]
[1760235007590,5.26922383,110410.0,110400.0,0.00055068]
[1760235007763,4.58792483,110390.0,110380.0,0.0004]
[1760235007965,5.17823603,110390.0,110380.0,0.00045015]
[1760235008166,5.20516603,110390.0,110380.0,0.00045015]
[1760235008798,5.0239902,110390.0,110380.0,0.00045015]
[1760235008988,5.24284988,110390.0,110380.0,0.00045015]
[1760235009195,5.24284988,110390.0,110380.0,0.00145015]
[1760235016826,4.65253868,110390.0,110380.0,0.00145015]
[1760235017040,5.24284988,110390.0,110380.0,0.00145015]
[1760235017253,5.24284988,110390.0,110380.0,0.00441791]
[1760235020113,5.24284988,110390.0,110380.0,0.04671791]
[1760235020114,1.14917088,110390.0,110380.0,0.04671791]
[1760235020372,0.03768385,110390.0,110380.0,0.28800844]
[1760235020794,0.34,110390.0,110380.0,0.28800844]
[1760235021431,0.03812,110400.0,110390.0,0.18117583]
[1760235021664,0.03812,110400.0,110390.0,0.28907773]
[1760235021875,0.79085797,110420.0,110390.0,0.28907773]
[1760235021876,0.86248159,110420.0,110400.0,0.18114742]
[1760235022087,0.34,110410.0,110400.0,0.22740151]
[1760235022302,0.79085797,110420.0,110410.0,0.0423]
[1760235022517,0.79085797,110420.0,110410.0,0.25889301]
[1760235022518,0.01036,110420.0,110410.0,0.25889301]
[1760235022734,0.1976966,110420.0,110410.0,0.0423]
[1760235022978,1.1114378,110420.0,110410.0,0.06694829]
[1760235023185,1.1114378,110420.0,110410.0,0.10239829]
[1760235023598,1.14817666,110420.0,110410.0,0.10239829]
[1760235024294,0.18114301,110410.0,110400.0,0.0483119]
[1760235024508,0.18114301,110410.0,110390.0,0.27399652]
[1760235024509,0.34,110400.0,110390.0,0.27399652]
[1760235024713,0.34,110400.0,110390.0,0.26268652]
[1760235025131,0.34,110400.0,110390.0,0.29813652]
[1760235027031,0.34,110400.0,110390.0,0.30051051]
[1760235030457,0.34,110400.0,110390.0,0.07482589]
[1760235030458,1.00807237,110400.0,110390.0,0.07482589]
[1760235030885,1.00807237,110400.0,110390.0,0.00237399]
[1760235031327,0.82012038,110400.0,110390.0,0.00237399]
[1760235032263,0.20702942,110400.0,110390.0,0.04318399]
[1760235032466,0.66807237,110400.0,110390.0,0.04318399]
[1760235032670,0.66807237,110400.0,110390.0,0.07092936]
[1760235032879,0.66807237,110400.0,110390.0,0.03011936]
[1760235033317,1.00807237,110400.0,110390.0,0.05329936]
[1760235033728,1.00807237,110400.0,110390.0,0.07092936]
[1760235033957,0.99215237,110400.0,110390.0,0.07092936]
[1760235034254,0.98220237,110400.0,110390.0,0.10539936]
[1760235035094,0.99812237,110400.0,110390.0,0.07092936]
[1760235035296,0.98220237,110400.0,110390.0,0.10539936]
[1760235036951,0.34,110400.0,110390.0,0.31672709]
[1760235037160,0.80104295,110400.0,110390.0,0.31672709]
[1760235037580,0.34,110400.0,110390.0,0.31672709]
[1760235038045,0.99812237,110400.0,110390.0,0.04318399]
[1760235038259,0.66807237,110400.0,110390.0,0.00237399]
[1760235039349,1.12911532,110400.0,110390.0,0.00237399]
[1760235040065,5.19586432,110400.0,110390.0,0.00237399]
[1760235040285,5.53586432,110400.0,110390.0,0.00237399]
[1760235040505,4.61377842,110400.0,110390.0,0.00237399]
[1760235040718,5.53586432,110400.0,110390.0,0.00237399]
[1760235041147,0.99812237,110400.0,110390.0,0.00237399]
[1760235041361,0.99812237,110400.0,110390.0,0.02714399]
[1760235041572,0.99812237,110400.0,110390.0,0.04978502]
[1760235041774,0.53707942,110400.0,110390.0,0.06772502]
[1760235041989,0.99812237,110400.0,110390.0,0.02501502]
[1760235042453,0.99812237,110400.0,110390.0,0.00237399]
[1760235042673,0.99812237,110400.0,110390.0,0.04508399]
[1760235043132,0.99812237,110400.0,110390.0,0.00237399]
[1760235043576,0.98220237,110400.0,110390.0,0.26183982]
[1760235043775,1.00028237,110400.0,110390.0,0.04508399]
[1760235044111,1.00028237,110400.0,110390.0,0.02031399]
[1760235044334,1.00028237,110400.0,110390.0,0.07060055]
[1760235045647,1.00028237,110400.0,110390.0,0.02789055]
[1760235047032,1.00028237,110400.0,110390.0,0.05266055]
[1760235047249,1.00028237,110400.0,110390.0,0.07060055]
[1760235047453,0.98220237,110400.0,110390.0,0.07060055]
[1760235047693,1.00028237,110400.0,110390.0,0.07060055]
[1760235048304,1.00028237,110400.0,110390.0,0.04583055]
[1760235048856,1.00028237,110400.0,110390.0,0.02789055]
[1760235049729,0.98220237,110400.0,110390.0,0.07060055]
[1760235049936,0.52115942,110400.0,110390.0,0.07060055]
[1760235050083,1.00028237,110400.0,110390.0,0.07060055]
[1760235050296,1.00028237,110400.0,110390.0,0.04583055]
[1760235051076,1.00028237,110400.0,110390.0,0.02789055]
[1760235051852,1.00028237,110400.0,110390.0,0.00237399]
[1760235051853,1.01158237,110400.0,110390.0,0.00237399]
[1760235052857,5.53937432,110400.0,110390.0,0.00237399]
[1760235053838,5.57588192,110400.0,110390.0,0.00237399]
[1760235055112,4.65379602,110400.0,110390.0,0.00237399]
[1760235055323,1.50913292,110400.0,110390.0,0.00237399]
[1760235055531,5.57588192,110400.0,110390.0,0.00237399]
[1760235056021,1.50913292,110400.0,110390.0,0.00237399]
[1760235056225,5.57588192,110400.0,110390.0,0.00237399]
[1760235056845,5.59008993,110400.0,110390.0,0.00237399]
[1760235057241,5.65875274,110400.0,110390.0,0.00237399]
[1760235057473,1.59200374,110400.0,110390.0,0.00237399]
[1760235057676,5.65875274,110400.0,110390.0,0.00237399]
[1760235058205,1.59563999,110400.0,110390.0,0.00237399]
[1760235058604,5.66238899,110400.0,110390.0,0.00237399]
[1760235059054,5.77572995,110400.0,110390.0,0.00237399]
[1760235059255,5.79830252,110400.0,110390.0,0.00237399]
[1760235060425,1.64283418,110400.0,110390.0,0.00237399]
[1760235060633,5.70958318,110400.0,110390.0,0.00237399]
[1760235061048,5.71403185,110400.0,110390.0,1e-08]
[1760235061258,4.63038029,110390.0,110380.0,0.00045015]
[1760235061468,5.12793084,110390.0,110380.0,0.00045015]
[1760235061676,5.15546084,110390.0,110380.0,0.00045015]
[1760235061891,5.15545005,110390.0,110380.0,0.00045015]
[1760235062099,5.13556716,110390.0,110380.0,0.00045015]
[1760235062306,5.09346249,110390.0,110380.0,0.00045015]
[1760235062747,5.09346249,110390.0,110380.0,0.00145015]
[1760235063572,1.98464924,110380.0,110370.0,0.0004]
[1760235063789,2.45628219,110380.0,110370.0,0.0005508]
[1760235064006,2.50075878,110380.0,110370.0,0.0005508]
[1760235064215,2.50439581,110380.0,110370.0,0.0005508]
[1760235064428,2.59311515,110380.0,110370.0,0.0005508]
[1760235064840,2.50439581,110380.0,110370.0,0.0005508]
[1760235065043,5.10768781,110380.0,110370.0,0.0005508]
[1760235065253,5.12750355,110380.0,110370.0,0.0005508]
[1760235065682,5.15007612,110380.0,110370.0,0.0005508]
[1760235065871,5.15007612,110380.0,110370.0,0.0015508]
[1760235066170,4.63034597,110370.0,110360.0,0.0004]
[1760235066375,5.67264756,110370.0,110360.0,1e-08]
[1760235066589,5.70017756,110370.0,110360.0,1e-08]
[1760235066806,5.30018593,110370.0,110360.0,1e-08]
[1760235067017,5.3143993,110370.0,110360.0,1e-08]
[1760235067242,5.3143993,110370.0,110360.0,0.00178131]
[1760235067243,5.26875194,110370.0,110360.0,0.00178131]
[1760235067669,1.20300294,110370.0,110360.0,0.00178131]
[1760235067879,5.26975194,110370.0,110360.0,0.00178131]
[1760235068093,5.20870062,110370.0,110360.0,0.00178131]
[1760235068300,5.14781057,110370.0,110360.0,0.00178131]
[1760235068514,5.14681057,110370.0,110360.0,0.00178131]
[1760235068767,5.14781057,110370.0,110360.0,0.00178131]
[1760235068988,5.16630498,110370.0,110360.0,0.00178131]
[1760235069462,5.18987146,110370.0,110360.0,0.00178131]
[1760235070865,1.10363414,110370.0,110360.0,0.00178131]
[1760235071089,1.10363414,110370.0,110340.0,1e-08]
[1760235071090,4.63396202,110360.0,110340.0,1e-08]
[1760235071334,5.55568359,110350.0,110340.0,1e-08]
[1760235071548,4.83072031,110350.0,110340.0,1e-08]
[1760235071765,4.83435863,110350.0,110340.0,1e-08]
[1760235072201,0.76760963,110350.0,110340.0,1e-08]
[1760235072409,4.83435863,110350.0,110340.0,1e-08]
[1760235072833,4.78875144,110350.0,110340.0,1e-08]
[1760235073257,0.72300244,110350.0,110340.0,1e-08]
[1760235073677,0.72300244,110350.0,110330.0,0.0004]
[1760235073678,0.9220859,110340.0,110330.0,0.0004]
[1760235073918,4.24803979,110320.0,110310.0,0.0004]
[1760235074136,4.83663328,110320.0,110310.0,0.0004]
[1760235074341,4.86144301,110320.0,110310.0,0.0004]
[1760235074547,4.88873428,110320.0,110310.0,0.0004]
[1760235074748,5.22873428,110320.0,110310.0,0.0004]
[1760235075372,5.26471122,110320.0,110310.0,0.0004]
[1760235075793,1.19796222,110320.0,110310.0,0.0004]
[1760235075997,1.16198528,110320.0,110310.0,0.0004]
[1760235076199,5.22873428,110320.0,110310.0,0.0004]
[1760235076647,5.22873428,110320.0,110310.0,0.00337058]
[1760235078826,5.22973428,110320.0,110310.0,0.00337058]
[1760235079040,1.16298528,110320.0,110310.0,0.00337058]
[1760235079242,1.25170462,110320.0,110310.0,0.00337058]
[1760235079451,5.31845362,110320.0,110310.0,0.00337058]
[1760235080103,1.25170462,110320.0,110310.0,0.00337058]
[1760235080521,5.22973428,110320.0,110310.0,0.00337058]
[1760235081153,4.76869133,110320.0,110310.0,0.00337058]
[1760235081361,1.06932133,110320.0,110310.0,0.00337058]
[1760235081594,5.10877906,110320.0,110310.0,0.00337058]
[1760235082216,5.10777906,110320.0,110310.0,0.00337058]
[1760235082423,5.1964984,110320.0,110310.0,0.00337058]
[1760235083047,5.10777906,110320.0,110310.0,0.00337058]
[1760235083266,0.47798954,110320.0,110310.0,0.2616678]
[1760235083491,0.46104295,110330.0,110320.0,0.18129079]
[1760235083709,0.46104295,110330.0,110320.0,0.28843269]
[1760235083919,0.00015029,110340.0,110330.0,0.18127435]
[1760235083920,0.46119324,110340.0,110330.0,0.18127435]
[1760235084204,0.46119324,110340.0,110330.0,0.28841625]
[1760235084205,0.00015029,110340.0,110330.0,0.28841625]
[1760235084639,0.46119324,110340.0,110330.0,0.28841625]
[1760235084867,0.98245117,110340.0,110330.0,0.28841625]
[1760235085079,0.98245117,110340.0,110330.0,0.0704819]
[1760235085256,0.80119324,110340.0,110330.0,0.28841625]
[1760235085719,0.98245117,110340.0,110330.0,0.28841625]
[1760235085931,0.98245117,110340.0,110330.0,0.25175625]
[1760235086138,0.99939117,110340.0,110330.0,0.25175625]
[1760235086348,0.98245117,110340.0,110330.0,0.0704819]
[1760235087200,0.98245117,110340.0,110320.0,0.01715]
[1760235087201,0.18127435,110330.0,110320.0,0.01715]
[1760235087410,0.18127435,110330.0,110310.0,0.01755]
[1760235087411,0.52129079,110320.0,110310.0,0.01755]
[1760235087615,0.99292374,110320.0,110310.0,0.04073]
[1760235087824,0.80104295,110320.0,110310.0,0.25869722]
[1760235088033,0.99927374,110320.0,110310.0,0.04073]
[1760235088244,0.99927374,110320.0,110310.0,0.0004]
[1760235088456,1.01614817,110320.0,110310.0,0.0004]
[1760235088870,1.01614817,110320.0,110310.0,0.02358]
[1760235089489,1.14646598,110320.0,110310.0,0.04173]
[1760235090109,1.12952598,110320.0,110310.0,0.28738358]
[1760235090316,1.14455598,110320.0,110310.0,0.06941636]
[1760235090526,1.14455598,110320.0,110310.0,0.04173]
[1760235090736,1.14455598,110320.0,110310.0,0.04073]
[1760235091149,1.14455598,110320.0,110310.0,0.04173]
[1760235091358,1.14455598,110320.0,110310.0,0.01855]
[1760235091781,1.15395598,110320.0,110310.0,0.0014]
[1760235092613,1.15395598,110320.0,110310.0,0.0004]
[1760235093475,1.17859401,110320.0,110310.0,0.0004]
[1760235093685,5.33406235,110320.0,110310.0,0.0004]
[1760235093894,5.24534301,110320.0,110310.0,0.0004]
[1760235094522,5.26482479,110320.0,110310.0,0.00337058]
[1760235094725,5.33325813,110320.0,110310.0,0.00337058]
[1760235095945,5.34747651,110320.0,110310.0,0.00337058]
[1760235096150,1.36944685,110320.0,110310.0,0.00337058]
[1760235096357,5.43619585,110320.0,110310.0,0.00337058]
[1760235097176,1.36944685,110320.0,110310.0,0.00337058]
[1760235097377,5.41671407,110320.0,110310.0,0.00337058]
[1760235097578,1.36945689,110320.0,110310.0,0.00337058]
[1760235097782,5.43620589,110320.0,110310.0,0.00337058]
[1760235098416,1.36945689,110320.0,110310.0,0.00337058]
[1760235098830,5.43620589,110320.0,110310.0,0.00337058]
[1760235099477,1.28073755,110320.0,110310.0,0.00337058]
[1760235099694,5.34748655,110320.0,110310.0,0.00337058]
[1760235099886,1.28073755,110320.0,110310.0,0.00337058]
[1760235100092,5.34748655,110320.0,110310.0,0.00337058]
[1760235101152,5.34748655,110320.0,110310.0,0.02574058]
[1760235101153,0.98275701,110320.0,110310.0,0.02574058]
[1760235101359,0.98275701,110320.0,110310.0,0.28086211]
[1760235101360,0.60823519,110320.0,110310.0,0.28086211]
[1760235101774,0.01687443,110320.0,110310.0,0.31101401]
[1760235102615,0.01709669,110340.0,110330.0,0.21142625]
[1760235102826,0.00015029,110340.0,110330.0,0.22882625]
[1760235103032,0.00015029,110340.0,110330.0,0.31581432]
[1760235104755,0.00015029,110340.0,110330.0,0.31681432]
[1760235106440,0.00015029,110340.0,110330.0,0.28646625]
[1760235106869,0.34015029,110340.0,110330.0,0.28646625]
[1760235108166,0.34015029,110340.0,110330.0,0.28824828]
[1760235111125,0.34015029,110340.0,110330.0,0.22355638]
[1760235111126,0.95456105,110340.0,110330.0,0.22355638]
[1760235111353,0.93151105,110340.0,110330.0,0.28824828]
[1760235111562,1.11276898,110340.0,110330.0,0.28824828]
[1760235111774,0.93151105,110340.0,110330.0,0.28824828]
[1760235111979,0.34015029,110340.0,110330.0,0.28824828]
[1760235112779,0.00015029,110340.0,110330.0,0.28824828]
[1760235112946,1.11276898,110340.0,110330.0,0.28824828]
[1760235113151,0.93151105,110340.0,110330.0,0.28824828]
[1760235114314,0.34015029,110340.0,110330.0,0.28824828]
[1760235115871,0.93151105,110340.0,110330.0,0.28824828]
[1760235117141,0.34015029,110340.0,110330.0,0.28824828]
[1760235119429,0.53448822,110340.0,110330.0,0.25370828]
[1760235119633,1.11276898,110340.0,110330.0,0.28824828]
[1760235119837,1.11276898,110340.0,110330.0,0.07243393]
[1760235120038,1.11276898,110340.0,110330.0,0.25370828]
[1760235120471,1.12584898,110340.0,110330.0,0.25370828]
[1760235120680,1.11276898,110340.0,110330.0,0.25370828]
[1760235120881,1.13402898,110340.0,110330.0,0.00278203]
[1760235121309,5.20077798,110340.0,110330.0,0.00278203]
[1760235121514,5.22541601,110340.0,110330.0,0.00278203]
[1760235122581,5.22541601,110340.0,110330.0,0.00178203]
[1760235124469,5.24232784,110340.0,110330.0,0.00178203]
[1760235124913,0.18129079,110320.0,110310.0,0.0004]
[1760235125122,5.20449575,110320.0,110310.0,0.0004]
[1760235125340,5.25039378,110320.0,110310.0,0.0004]
[1760235125770,5.26461248,110320.0,110310.0,0.0004]
[1760235126183,5.24769728,110320.0,110310.0,0.0004]
[1760235126820,5.31654611,110320.0,110310.0,0.0004]
[1760235128093,5.40526545,110320.0,110310.0,0.0004]
[1760235129783,5.18844035,110320.0,110310.0,0.0004]
[1760235130629,5.18844035,110320.0,110310.0,0.00158839]
[1760235131278,5.25701672,110320.0,110310.0,0.00158839]
[1760235132103,5.27393928,110320.0,110310.0,0.00158839]
[1760235132308,5.67393928,110320.0,110310.0,0.00158839]
[1760235132898,5.76265862,110320.0,110310.0,0.00158839]
[1760235133248,1.1127173,110280.0,110270.0,0.0004]
[1760235133457,1.1208973,110280.0,110270.0,0.0004]
[1760235133700,1.1339773,110280.0,110270.0,0.0004]
[1760235134029,1.16143775,110280.0,110270.0,0.0004]
[1760235134563,0.57007699,110280.0,110270.0,0.02321333]
[1760235134766,1.14017775,110280.0,110270.0,0.07480333]
[1760235134972,1.14017775,110280.0,110270.0,0.10211551]
[1760235135391,0.36746045,110280.0,110270.0,0.2844885]
[1760235135602,0.54881699,110280.0,110270.0,0.10311551]
[1760235135815,1.14017775,110280.0,110270.0,0.06805551]
[1760235136233,1.15325775,110280.0,110270.0,0.04074333]
[1760235136647,0.95882121,110280.0,110270.0,0.22111632]
[1760235136853,0.95882121,110280.0,110270.0,0.25617632]
[1760235137250,1.15325775,110280.0,110270.0,0.03974333]
[1760235137566,0.54881699,110280.0,110270.0,0.25617632]
[1760235137766,1.14017775,110280.0,110270.0,0.25617632]
[1760235137986,0.95882121,110280.0,110270.0,0.25617632]
[1760235138838,0.95882121,110280.0,110270.0,0.25855418]
[1760235140585,1.15325775,110280.0,110270.0,0.22349418]
[1760235140942,1.15325775,110280.0,110270.0,0.04212119]
[1760235141515,1.18358294,110280.0,110270.0,0.00328119]
[1760235141725,1.16143775,110280.0,110270.0,0.00328119]
[1760235142824,1.15325775,110280.0,110270.0,0.00328119]
[1760235143811,1.16143775,110280.0,110270.0,0.00328119]
[1760235143996,1.15325775,110280.0,110270.0,0.00328119]
[1760235144704,1.16143775,110280.0,110270.0,0.00328119]
[1760235144920,1.15325775,110280.0,110270.0,0.00328119]
[1760235145165,1.16143775,110280.0,110270.0,0.00328119]
[1760235146175,1.25015709,110280.0,110270.0,0.00328119]
[1760235146591,1.16143775,110280.0,110270.0,0.00328119]
[1760235147485,1.18607578,110280.0,110270.0,0.00328119]
[1760235148158,1.20301314,110280.0,110270.0,0.00328119]
[1760235148348,0.61165238,110280.0,110270.0,0.00328119]
[1760235148667,1.17837511,110280.0,110270.0,0.00328119]
[1760235149304,0.56575435,110280.0,110270.0,0.07718119]
[1760235149513,1.15711511,110280.0,110270.0,0.08659231]
[1760235149750,1.14017775,110280.0,110270.0,0.07718119]
[1760235150200,1.15327775,110280.0,110270.0,0.04212119]
[1760235150647,1.15327775,110280.0,110270.0,0.00328119]
[1760235151355,1.17023346,110280.0,110270.0,0.00328119]
[1760235151593,1.04107998,110280.0,110270.0,0.00328119]
[1760235152351,0.5788727,110280.0,110270.0,0.04221119]
[1760235152555,1.04107998,110280.0,110270.0,0.00328119]
[1760235154116,1.04107998,110280.0,110270.0,0.02545119]
[1760235154501,0.70107998,110280.0,110270.0,0.00328119]
[1760235154927,0.70107998,110280.0,110270.0,0.02545119]
[1760235155101,0.70107998,110280.0,110270.0,0.04221119]
[1760235155498,0.70107998,110280.0,110270.0,0.07528119]
[1760235155499,1.0391494,110280.0,110270.0,0.07528119]
[1760235155729,1.0391494,110280.0,110270.0,0.04221119]
[1760235155901,1.0391494,110280.0,110270.0,0.07528119]
[1760235156569,0.5657727,110280.0,110270.0,0.07528119]
[1760235156719,0.5657727,110280.0,110270.0,0.30494337]
[1760235156720,0.04441616,110280.0,110270.0,0.30494337]
[1760235156927,0.02746045,110280.0,110270.0,0.28680608]
[1760235157131,0.03812,110310.0,110300.0,0.21147556]
[1760235157341,0.46178961,110310.0,110300.0,0.28347556]
[1760235157560,1.02125829,110310.0,110300.0,0.1021519]
[1760235157751,1.02125829,110310.0,110300.0,0.28347556]
[1760235158175,0.68125829,110310.0,110300.0,0.28347556]
[1760235158421,0.70828871,110310.0,110300.0,0.28347556]
[1760235158652,0.70828871,110310.0,110290.0,0.01676]
[1760235158653,0.18132366,110300.0,110290.0,0.01676]
[1760235158849,0.18132366,110300.0,110280.0,0.01676]
[1760235158850,0.5213401,110290.0,110280.0,0.01676]
[1760235159054,1.00446117,110290.0,110280.0,0.01676]
[1760235159263,0.84010066,110290.0,110270.0,0.00090333]
[1760235159588,0.84010066,110290.0,110280.0,0.072]
[1760235159589,0.54651469,110290.0,110280.0,0.072]
[1760235159759,0.55961469,110290.0,110280.0,0.03893]
[1760235160613,1.02144576,110290.0,110280.0,0.03893]
[1760235161221,1.02214076,110290.0,110280.0,0.03893]
[1760235162078,1.02214076,110290.0,110270.0,0.01766333]
[1760235162079,0.18135654,110280.0,110270.0,0.01766333]
[1760235162229,0.6601672,110280.0,110270.0,0.00090333]
[1760235162427,0.6601672,110280.0,110270.0,0.07422333]
[1760235162428,1.0001672,110280.0,110270.0,0.07422333]
[1760235162856,1.0001672,110280.0,110270.0,0.28287333]
[1760235162857,0.81881066,110280.0,110270.0,0.28287333]
[1760235163058,0.34,110280.0,110270.0,0.28287333]
[1760235163652,0.26974354,110310.0,110290.0,0.18132566]
[1760235163829,0.64315473,110300.0,110290.0,0.23216566]
[1760235164051,1.00014238,110300.0,110290.0,0.25464566]
[1760235164253,1.00014238,110300.0,110290.0,0.07332]
[1760235164867,1.00014238,110300.0,110290.0,0.2208401]
[1760235165083,1.01394238,110300.0,110290.0,0.0395]
[1760235165267,0.1813401,110290.0,110280.0,0.19837654]
[1760235165466,0.64317117,110290.0,110280.0,0.22085654]
[1760235165921,0.46183107,110290.0,110280.0,0.22085654]
[1760235166236,0.46183107,110290.0,110280.0,0.31029381]
[1760235167161,0.46183107,110290.0,110280.0,0.0395]
[1760235167362,0.65697117,110290.0,110280.0,0.22185654]
[1760235167606,0.64317117,110290.0,110280.0,0.22185654]
[1760235167820,0.64317117,110290.0,110280.0,0.0405]
[1760235168009,0.64317117,110290.0,110280.0,0.22185654]
[1760235168219,0.64317117,110290.0,110280.0,0.25567654]
[1760235168853,0.64317117,110290.0,110280.0,0.07432]
[1760235169328,0.99697117,110290.0,110280.0,0.001]
[1760235169741,1.02257934,110290.0,110280.0,0.001]
[1760235170177,0.52135654,110280.0,110270.0,0.01792333]
[1760235170438,0.98318761,110280.0,110270.0,0.01792333]
[1760235170658,0.99698761,110280.0,110270.0,0.01792333]
[1760235171465,0.99698761,110280.0,110270.0,0.01892333]
[1760235171804,0.99698761,110280.0,110270.0,0.22177632]
[1760235172398,0.98318761,110280.0,110270.0,0.22177632]
[1760235172536,0.99698761,110280.0,110270.0,0.22177632]
[1760235173905,4.2480891,110290.0,110280.0,0.18134926]
[1760235174055,0.5213401,110290.0,110280.0,0.22084926]
[1760235174418,0.19554956,110300.0,110290.0,0.1813401]
[1760235174542,0.19554956,110300.0,110290.0,0.2208401]
[1760235174744,0.72598407,110310.0,110290.0,0.25584882]
[1760235175046,0.72598407,110310.0,110300.0,0.23216366]
[1760235175047,0.06515042,110310.0,110300.0,0.23216366]
[1760235175174,0.02703042,110310.0,110300.0,0.28479556]
[1760235175555,0.0009758,110320.0,110310.0,0.21145912]
[1760235175960,0.0009758,110320.0,110310.0,0.28477912]
[1760235176596,0.68174341,110320.0,110310.0,0.0395]
[1760235176796,0.18130722,110310.0,110300.0,0.22849058]
[1760235177203,0.52130722,110310.0,110300.0,0.28479058]
[1760235177644,0.34,110310.0,110300.0,0.28479058]
[1760235178251,0.80183107,110310.0,110300.0,0.28579058]
[1760235179016,0.99584829,110310.0,110300.0,0.0706519]
[1760235179232,0.99584829,110310.0,110300.0,0.0405]
[1760235179827,0.99584829,110310.0,110300.0,0.06867471]
[1760235180157,0.99584829,110310.0,110300.0,0.25059267]
[1760235180364,0.99584829,110310.0,110300.0,0.0015943]
[1760235180648,0.99584829,110310.0,110300.0,0.0005943]
[1760235180649,1.00378829,110310.0,110300.0,0.0005943]
[1760235183664,5.07053729,110310.0,110300.0,0.0005943]
[1760235183866,5.09517532,110310.0,110300.0,0.0005943]
[1760235184539,4.60076622,110310.0,110300.0,0.0005943]
[1760235184748,0.99584829,110310.0,110300.0,0.0005943]
[1760235184951,1.01006818,110310.0,110300.0,0.0005943]
[1760235185195,0.01421989,110310.0,110300.0,0.0737143]
[1760235185407,0.18130722,110310.0,110300.0,0.06819693]
[1760235185624,0.65584829,110310.0,110300.0,0.06819693]
[1760235185827,0.65584829,110310.0,110300.0,0.0005943]
[1760235186256,0.66378829,110310.0,110300.0,0.0005943]
[1760235186462,5.07053729,110310.0,110300.0,0.0005943]
[1760235186662,1.04539966,110310.0,110300.0,0.0005943]
[1760235186788,5.12636831,110310.0,110300.0,0.0005943]
[1760235187202,1.05961931,110310.0,110300.0,0.0005943]
[1760235187672,5.10173028,110310.0,110300.0,0.0005943]
[1760235189198,1.01006794,110310.0,110300.0,0.0005943]
[1760235189555,0.99584829,110310.0,110300.0,0.0005943]
[1760235189737,1.00378829,110310.0,110300.0,0.0005943]
[1760235189938,0.80236924,110310.0,110300.0,0.0005943]
[1760235190160,0.98367646,110310.0,110300.0,0.0005943]
[1760235190829,0.97573646,110310.0,110300.0,0.0005943]
[1760235191033,0.97573646,110310.0,110300.0,0.25503796]
[1760235191034,0.46183107,110310.0,110300.0,0.25503796]
[1760235191431,0.65735707,110310.0,110300.0,0.0737143]
[1760235191649,0.64313829,110310.0,110300.0,0.25503796]
[1760235191888,0.20612464,110320.0,110300.0,0.25503796]
[1760235192119,0.46183107,110310.0,110300.0,0.25503796]
[1760235192312,0.34,110310.0,110300.0,0.25503796]
[1760235192511,0.48665778,110320.0,110310.0,0.18130722]
[1760235192719,1.00794857,110320.0,110310.0,0.22167722]
[1760235192922,1.00794857,110320.0,110310.0,0.25442722]
[1760235193130,1.00794857,110320.0,110310.0,0.07312]
[1760235193341,1.00794857,110320.0,110310.0,0.01728]
[1760235193521,1.00794857,110320.0,110310.0,0.04037]
[1760235193735,0.82665778,110320.0,110310.0,0.28165853]
[1760235193952,1.00794857,110320.0,110310.0,0.28165853]
[1760235194160,1.00794857,110320.0,110310.0,0.10035131]
[1760235195434,1.00794857,110320.0,110310.0,0.04037]
[1760235195769,1.00794857,110320.0,110310.0,0.22167722]
[1760235195970,1.00794857,110320.0,110310.0,0.25442722]
[1760235196176,1.00794857,110320.0,110310.0,0.04037]
[1760235196572,0.18130722,110310.0,110300.0,0.0178743]
[1760235196983,0.52130722,110310.0,110300.0,0.25503796]
[1760235197203,0.80183107,110310.0,110300.0,0.24695257]
[1760235197627,0.80183107,110310.0,110300.0,0.27970257]
[1760235197628,0.34,110310.0,110300.0,0.27970257]
[1760235197846,0.34,110310.0,110300.0,0.30985447]
[1760235198302,0.80183107,110310.0,110300.0,0.30985447]
[1760235198518,0.80183107,110310.0,110300.0,0.31085447]
[1760235201310,0.34,110310.0,110300.0,0.31085447]
[1760235203515,0.24927915,110350.0,110300.0,0.31085447]
[1760235203516,0.42436477,110370.0,110310.0,0.21145912]
[1760235203733,0.04508574,110420.0,110310.0,0.21145912]
[1760235203734,0.02463061,110430.0,110410.0,0.09999999]
[1760235203950,0.02463061,110430.0,110420.0,0.31127849]